bitfinex/quotes_SOLUSD_20230105
["timestamp","ask_amount","ask_price","bid_price","bid_amount"]
[1672885225062,22.83326844,13.202,13.195,20.0]
[1672885225507,22.83326844,13.202,13.196,56.87]
[1672885228025,22.83326844,13.202,13.195,312.0]
[1672885232009,51.74219795,13.201,13.19,56.9]
[1672885232220,20.0,13.2,13.189,176.2815]
[1672885232429,42.83326844,13.2,13.189,176.2815]
[1672885232640,22.83326844,13.199,13.189,176.2815]
[1672885232980,74.16503538,13.199,13.189,176.2815]
[1672885233179,131.02503538,13.199,13.189,176.2815]
[1672885233371,20.0,13.197,13.189,176.2815]
[1672885233581,22.83326844,13.198,13.189,176.2815]
[1672885233803,22.83326844,13.196,13.189,176.2815]
[1672885235174,22.83326844,13.196,13.189,488.2815]
[1672885235931,51.33176694,13.199,13.189,488.2815]
[1672885236460,22.83326844,13.198,13.189,488.2815]
[1672885238557,22.83326844,13.198,13.189,715.4815]
[1672885238760,92.4424266,13.2,13.19,20.0]
[1672885238976,40.70022865,13.2,13.19,20.0]
[1672885239182,40.70022865,13.2,13.192,20.0]
[1672885239592,40.70022865,13.2,13.193,56.88]
[1672885244014,76.84,13.203,13.193,56.88]
[1672885244438,20.0,13.203,13.194,20.0]
[1672885244849,20.0,13.203,13.195,56.88]
[1672885245204,20.0,13.203,13.194,304.08]
[1672885245384,22.83326844,13.207,13.194,304.08]
[1672885245600,117.3276,13.216,13.196,227.2]
[1672885245917,111.48193801,13.215,13.196,227.2]
[1672885246133,168.27193801,13.215,13.198,227.2]
[1672885246318,40.70022865,13.214,13.199,20.0]
[1672885246527,63.53349709,13.214,13.2,227.2]
[1672885246759,79.63326844,13.213,13.201,20.0]
[1672885246981,79.63326844,13.213,13.203,20.0]
[1672885247211,22.83326844,13.212,13.203,20.0]
[1672885247513,40.70022865,13.214,13.204,284.04]
[1672885247720,22.83326844,13.212,13.203,56.84]
[1672885247908,22.83326844,13.212,13.204,20.0]
[1672885248977,22.83326844,13.212,13.203,56.84]
[1672885251496,22.83326844,13.212,13.203,76.84]
[1672885251812,22.83326844,13.212,13.204,20.0]
[1672885252025,22.83326844,13.212,13.204,332.0]
[1672885255392,22.83326844,13.212,13.205,20.0]
[1672885255639,22.83326844,13.212,13.205,304.03]
[1672885255798,22.83326844,13.212,13.206,20.0]
[1672885256532,40.70022865,13.214,13.206,20.0]
[1672885256741,56.76,13.221,13.207,284.02]
[1672885256961,40.6088351,13.221,13.209,20.0]
[1672885257169,22.83326844,13.219,13.209,20.0]
[1672885257381,22.83326844,13.219,13.211,20.0]
[1672885258534,22.83326844,13.219,13.211,332.0]
[1672885258954,22.83326844,13.219,13.212,56.8]
[1672885259165,22.83326844,13.219,13.213,20.0]
[1672885260332,40.6088351,13.221,13.213,20.0]
[1672885260538,40.6088351,13.221,13.212,76.8]
[1672885260753,40.6088351,13.221,13.212,56.8]
[1672885260970,22.83326844,13.22,13.212,56.8]
[1672885261287,22.83326844,13.22,13.211,56.81]
[1672885261677,22.83326844,13.22,13.211,20.0]
[1672885261886,22.83326844,13.22,13.21,56.81]
[1672885262519,22.83326844,13.22,13.213,312.0]
[1672885262952,118.00794196,13.22,13.213,312.0]
[1672885263274,22.83326844,13.219,13.213,312.0]
[1672885264318,151.94467352,13.22,13.213,312.0]
[1672885264644,95.17467352,13.22,13.213,312.0]
[1672885265261,22.83326844,13.219,13.213,312.0]
[1672885266537,70.05950104,13.219,13.213,312.0]
[1672885266848,22.83326844,13.218,13.213,312.0]
[1672885267482,22.83326844,13.218,13.21,56.81]
[1672885269375,47.2262326,13.219,13.211,20.0]
[1672885269793,47.2262326,13.219,13.212,56.8]
[1672885270531,47.2262326,13.219,13.212,368.8]
[1672885270727,47.2262326,13.219,13.212,312.0]
[1672885270937,47.94844092,13.22,13.212,312.0]
[1672885271144,22.83326844,13.219,13.212,312.0]
[1672885279388,40.6088351,13.221,13.212,312.0]
[1672885280651,22.83326844,13.22,13.212,312.0]
[1672885285044,22.83326844,13.22,13.214,20.0]
[1672885285250,22.83326844,13.22,13.213,56.8]
[1672885291339,22.83326844,13.22,13.212,312.0]
[1672885292082,22.83326844,13.22,13.214,20.0]
[1672885292505,22.83326844,13.22,13.212,312.0]
[1672885293140,70.05950104,13.22,13.212,312.0]
[1672885293558,22.83326844,13.219,13.212,312.0]
[1672885295017,22.83326844,13.219,13.21,56.81]
[1672885297956,22.83326844,13.219,13.214,312.0]
[1672885300272,40.6088351,13.221,13.214,312.0]
[1672885300692,115.3168,13.223,13.216,20.0]
[1672885300905,155.9256351,13.223,13.215,76.79]
[1672885302497,155.9256351,13.223,13.215,56.79]
[1672885304373,40.6088351,13.223,13.215,247.2]
[1672885304590,76.74,13.227,13.215,303.99]
[1672885304798,40.6088351,13.225,13.216,20.0]
[1672885305023,20.0,13.224,13.216,20.0]
[1672885305748,56.73,13.229,13.218,20.0]
[1672885305963,22.83326844,13.229,13.218,20.0]
[1672885306198,22.83326844,13.229,13.22,20.0]
[1672885306697,22.83326844,13.229,13.221,56.76]
[1672885307320,22.83326844,13.229,13.222,20.0]
[1672885307743,22.83326844,13.229,13.224,20.0]
[1672885307955,22.83326844,13.229,13.223,56.75]
[1672885308919,61.4239232,13.231,13.225,20.0]
[1672885309109,84.25719164,13.231,13.225,20.0]
[1672885309741,61.4239232,13.231,13.226,52.47511368]
[1672885310282,61.4239232,13.231,13.226,20.0]
[1672885310499,61.4239232,13.231,13.225,52.47511368]
[1672885311218,61.4239232,13.231,13.224,312.0]
[1672885312176,61.4239232,13.231,13.225,20.0]
[1672885312481,61.4239232,13.231,13.225,247.2]
[1672885312695,61.4239232,13.231,13.227,43.20621126]
[1672885312908,61.4239232,13.231,13.229,44.01524799]
[1672885313106,61.4239232,13.231,13.226,56.74]
[1672885313311,61.4239232,13.231,13.228,20.0]
[1672885313744,61.4239232,13.231,13.227,20.0]
[1672885313951,61.4239232,13.231,13.227,42.64394561]
[1672885314166,61.4239232,13.231,13.226,56.74]
[1672885315622,60.4239232,13.231,13.227,20.0]
[1672885315849,60.4239232,13.231,13.226,56.74]
[1672885316253,60.4239232,13.231,13.225,56.75]
[1672885318062,83.25719164,13.231,13.224,312.0]
[1672885321110,83.25719164,13.231,13.22,20.0]
[1672885321636,83.25719164,13.231,13.221,56.76]
[1672885322775,83.25719164,13.231,13.22,56.77]
[1672885323104,56.73,13.23,13.219,56.77]
[1672885323300,56.73,13.23,13.211,227.2]
[1672885323301,20.0,13.229,13.211,227.2]
[1672885323515,20.0,13.228,13.21,112.4195]
[1672885323713,20.0,13.227,13.21,112.4195]
[1672885323927,20.0,13.226,13.211,368.81]
[1672885324151,20.0,13.225,13.212,20.0]
[1672885324370,20.0,13.224,13.212,76.8]
[1672885324573,20.0,13.223,13.212,56.8]
[1672885324789,112.20078106,13.223,13.212,56.8]
[1672885324984,20.0,13.221,13.212,56.8]
[1672885325321,20.0,13.221,13.211,56.81]
[1672885325627,64.97454846,13.221,13.211,56.81]
[1672885325821,44.97454846,13.221,13.211,56.81]
[1672885326470,22.83326844,13.22,13.211,56.81]
[1672885326685,22.83326844,13.22,13.21,112.4195]
[1672885326869,79.60326844,13.22,13.21,112.4195]
[1672885327294,22.83326844,13.219,13.21,169.2295]
[1672885327928,22.83326844,13.219,13.21,112.4195]
[1672885328141,22.83326844,13.219,13.21,424.4195]
[1672885329081,22.83326844,13.219,13.21,112.4195]
[1672885329297,22.83326844,13.219,13.21,169.2295]
[1672885332871,22.83326844,13.219,13.21,481.2295]
[1672885340642,67.8078169,13.219,13.21,424.4195]
[1672885340868,67.8078169,13.219,13.21,312.0]
[1672885341079,115.0340495,13.219,13.205,113.5916]
[1672885341294,161.24718604,13.219,13.206,40.0]
[1672885341504,161.24718604,13.219,13.206,96.83]
[1672885341829,161.24718604,13.219,13.207,20.0]
[1672885342038,91.187685,13.219,13.207,20.0]
[1672885342250,91.187685,13.219,13.208,56.82]
[1672885344039,91.187685,13.219,13.208,368.82]
[1672885344561,44.97454846,13.219,13.208,595.72]
[1672885344762,44.97454846,13.219,13.209,20.0]
[1672885345180,44.97454846,13.219,13.21,56.81]
[1672885346367,22.83326844,13.218,13.21,56.81]
[1672885348113,22.83326844,13.218,13.21,368.81]
[1672885353514,44.97454846,13.219,13.211,20.0]
[1672885354041,44.97454846,13.219,13.213,20.0]
[1672885355511,169.4011,13.223,13.211,76.81]
[1672885355709,44.97454846,13.222,13.211,76.81]
[1672885356650,44.97454846,13.222,13.211,388.81]
[1672885358642,44.97454846,13.222,13.211,615.71]
[1672885358853,76.75,13.224,13.212,20.0]
[1672885359075,20.0,13.224,13.212,20.0]
[1672885359398,64.97454846,13.224,13.213,56.8]
[1672885359604,121.72454846,13.224,13.213,56.8]
[1672885359800,64.97454846,13.224,13.213,56.8]
[1672885360328,64.97454846,13.224,13.213,20.0]
[1672885360539,56.75,13.223,13.212,56.8]
[1672885360874,20.0,13.222,13.212,56.8]
[1672885361271,101.72454846,13.223,13.212,56.8]
[1672885361915,101.72454846,13.223,13.213,312.0]
[1672885362129,101.72454846,13.223,13.214,20.0]
[1672885362443,101.72454846,13.223,13.213,312.0]
[1672885362663,101.72454846,13.223,13.213,368.8]
[1672885363486,101.72454846,13.223,13.213,312.0]
[1672885364436,22.83326844,13.222,13.213,312.0]
[1672885364868,20.0,13.22,13.21,115.381]
[1672885365280,22.83326844,13.219,13.21,115.381]
[1672885366968,22.83326844,13.219,13.211,56.81]
[1672885367186,22.83326844,13.219,13.21,172.191]
[1672885367928,22.83326844,13.219,13.21,484.191]
[1672885372463,22.83326844,13.219,13.21,711.091]
[1672885372675,22.83326844,13.219,13.211,20.0]
[1672885373178,44.97454846,13.22,13.212,56.8]
[1672885373386,67.8078169,13.22,13.212,56.8]
[1672885373603,67.8078169,13.22,13.211,56.81]
[1672885375178,20.0,13.219,13.211,56.81]
[1672885375390,58.91747799,13.219,13.21,115.381]
[1672885375600,20.0,13.217,13.21,172.191]
[1672885376068,22.83326844,13.218,13.21,484.191]
[1672885377808,75.36137165,13.218,13.21,368.81]
[1672885378012,20.0,13.217,13.21,277.8988]
[1672885378361,112.20078106,13.216,13.204,56.84]
[1672885378541,20.0,13.215,13.207,312.0]
[1672885378865,64.97454846,13.214,13.207,312.0]
[1672885379076,20.0,13.213,13.207,312.0]
[1672885379260,42.83326844,13.213,13.207,312.0]
[1672885379994,20.0,13.211,13.203,56.84]
[1672885380317,22.83326844,13.212,13.203,56.84]
[1672885381573,20.0,13.211,13.199,56.86]
[1672885382021,22.83326844,13.21,13.199,56.86]
[1672885382539,20.0,13.209,13.199,56.86]
[1672885382733,72.52810321,13.209,13.199,56.86]
[1672885382950,22.83326844,13.208,13.199,56.86]
[1672885387361,52.52810321,13.209,13.199,56.86]
[1672885387905,44.97454846,13.21,13.199,283.76]
[1672885388114,44.97454846,13.21,13.199,56.86]
[1672885388623,20.0,13.208,13.199,56.86]
[1672885389048,22.83326844,13.209,13.199,56.86]
[1672885390327,22.83326844,13.209,13.199,368.86]
[1672885393050,75.36137165,13.209,13.199,56.86]
[1672885393249,52.52810321,13.209,13.199,56.86]
[1672885395981,52.52810321,13.209,13.199,368.86]
[1672885401364,52.52810321,13.209,13.199,56.86]
[1672885405657,76.82,13.208,13.189,119.8939]
[1672885405872,20.0,13.207,13.189,119.8939]
[1672885406079,20.0,13.206,13.189,119.8939]
[1672885406406,20.0,13.205,13.189,176.7939]
[1672885406616,20.0,13.204,13.189,176.7939]
[1672885406809,20.0,13.203,13.189,176.7939]
[1672885407234,20.0,13.201,13.189,176.7939]
[1672885407653,56.85,13.2,13.189,176.7939]
[1672885407866,20.0,13.199,13.189,176.7939]
[1672885408509,162.64611299,13.2,13.189,176.7939]
[1672885408813,109.37810321,13.2,13.189,176.7939]
[1672885409011,52.52810321,13.2,13.189,176.7939]
[1672885410166,56.84,13.202,13.189,176.7939]
[1672885413133,110.10800978,13.202,13.189,176.7939]
[1672885413336,20.0,13.201,13.189,176.7939]
[1672885413550,20.0,13.201,13.189,488.7939]
[1672885415768,52.52810321,13.201,13.189,488.7939]
[1672885416170,53.26800978,13.202,13.19,20.0]
[1672885416380,76.84,13.204,13.19,20.0]
[1672885416606,20.0,13.204,13.191,56.89]
[1672885416814,76.84,13.204,13.191,56.89]
[1672885417140,130.10800978,13.204,13.191,56.89]
[1672885417975,20.0,13.203,13.19,56.9]
[1672885418387,20.0,13.201,13.19,56.9]
[1672885419243,20.0,13.201,13.19,368.9]
[1672885419456,20.0,13.201,13.19,312.0]
[1672885419869,56.84,13.202,13.19,312.0]
[1672885420486,56.84,13.202,13.189,176.7939]
[1672885421247,52.52810321,13.201,13.189,176.7939]
[1672885421433,56.84,13.203,13.189,176.7939]
[1672885422175,20.0,13.202,13.189,176.7939]
[1672885425026,56.84,13.203,13.189,176.7939]
[1672885425429,109.36810321,13.203,13.189,176.7939]
[1672885426288,20.0,13.202,13.189,176.7939]
[1672885427241,53.26800978,13.201,13.189,176.7939]
[1672885427547,52.52810321,13.202,13.189,176.7939]
[1672885428161,52.52810321,13.202,13.19,20.0]
[1672885428592,52.52810321,13.202,13.191,56.89]
[1672885428799,52.52810321,13.202,13.192,20.0]
[1672885429442,52.52810321,13.202,13.191,56.89]
[1672885430492,76.84,13.204,13.192,20.0]
[1672885430698,20.0,13.204,13.192,20.0]
[1672885430914,22.83326844,13.203,13.193,56.88]
[1672885431232,22.83326844,13.203,13.194,20.0]
[1672885431630,22.83326844,13.203,13.195,56.88]
[1672885432481,22.83326844,13.203,13.193,56.88]
[1672885433093,302.21747799,13.219,13.193,283.78]
[1672885433319,20.0,13.215,13.195,226.9]
[1672885433542,20.0,13.215,13.197,226.9]
[1672885433738,20.0,13.215,13.198,20.0]
[1672885433943,20.0,13.215,13.198,76.86]
[1672885434161,20.0,13.213,13.198,76.86]
[1672885434893,56.79,13.214,13.198,76.86]
[1672885435105,20.0,13.213,13.198,76.86]
[1672885437743,20.0,13.213,13.198,388.86]
[1672885441628,20.0,13.213,13.198,56.86]
[1672885441842,20.0,13.211,13.198,56.86]
[1672885442073,20.0,13.21,13.196,56.87]
[1672885442265,20.0,13.21,13.189,114.8269]
[1672885442266,317.38166918,13.21,13.189,171.7269]
[1672885442452,80.18055641,13.209,13.189,171.7269]
[1672885442663,40.0,13.208,13.19,276.9]
[1672885442873,237.17316918,13.208,13.19,30.0]
[1672885443092,100.18055641,13.207,13.191,56.89]
[1672885443410,137.51990074,13.206,13.19,56.9]
[1672885443605,20.0,13.205,13.19,56.9]
[1672885443819,20.0,13.204,13.19,56.9]
[1672885444044,20.0,13.203,13.19,56.9]
[1672885444253,121.71852255,13.203,13.19,56.9]
[1672885444454,20.0,13.201,13.19,56.9]
[1672885444876,22.83326844,13.2,13.19,56.9]
[1672885446029,20.0,13.199,13.19,56.9]
[1672885446445,22.83326844,13.198,13.19,56.9]
[1672885449619,22.83326844,13.198,13.183,538.9]
[1672885449620,57.33934433,13.197,13.184,56.92]
[1672885449935,57.33934433,13.196,13.184,56.92]
[1672885450126,20.0,13.195,13.182,172.0411]
[1672885450341,57.33934433,13.195,13.182,172.0411]
[1672885450552,57.33934433,13.195,13.183,20.0]
[1672885450866,57.33934433,13.195,13.182,172.0411]
[1672885451076,20.0,13.194,13.182,172.0411]
[1672885451285,57.33934433,13.195,13.182,172.0411]
[1672885451494,57.33934433,13.195,13.183,20.0]
[1672885451924,57.33934433,13.195,13.185,20.0]
[1672885452129,57.33934433,13.195,13.184,56.92]
[1672885453499,20.0,13.209,13.184,283.82]
[1672885453708,20.0,13.209,13.185,20.0]
[1672885454040,20.0,13.205,13.186,20.0]
[1672885454355,62.97126528,13.205,13.188,20.0]
[1672885454541,37.48326844,13.204,13.189,118.5546]
[1672885454758,40.0,13.203,13.189,175.4546]
[1672885454966,62.83326844,13.203,13.189,175.4546]
[1672885455177,20.0,13.201,13.189,175.4546]
[1672885455605,22.83326844,13.2,13.189,175.4546]
[1672885457101,22.83326844,13.2,13.189,487.4546]
[1672885463499,22.83326844,13.2,13.19,20.0]
[1672885463914,22.83326844,13.2,13.192,20.0]
[1672885464228,22.83326844,13.2,13.191,56.89]
[1672885464664,22.83326844,13.2,13.19,56.9]
[1672885465921,68.45606238,13.2,13.19,56.9]
[1672885466322,20.0,13.198,13.19,56.9]
[1672885466547,22.83326844,13.199,13.19,56.9]
[1672885466742,22.83326844,13.198,13.19,56.9]
[1672885472647,76.84,13.203,13.19,56.9]
[1672885472864,20.0,13.203,13.191,20.0]
[1672885473383,20.0,13.203,13.193,20.0]
[1672885476536,20.0,13.203,13.192,56.89]
[1672885477579,20.0,13.204,13.192,56.89]
[1672885477900,62.83326844,13.204,13.192,56.89]
[1672885478109,62.83326844,13.204,13.191,56.89]
[1672885479041,76.84,13.203,13.19,56.9]
[1672885479579,20.0,13.201,13.19,368.9]
[1672885479817,65.80453372,13.202,13.19,368.9]
[1672885480135,22.83326844,13.2,13.19,368.9]
[1672885483594,20.0,13.198,13.186,56.91]
[1672885483793,20.0,13.197,13.183,56.93]
[1672885484003,20.0,13.196,13.182,76.93]
[1672885484238,20.0,13.195,13.182,303.83]
[1672885485160,93.7403,13.202,13.185,20.0]
[1672885485367,22.83326844,13.199,13.185,20.0]
[1672885485580,22.83326844,13.199,13.186,76.91]
[1672885485791,22.83326844,13.199,13.187,20.0]
[1672885486000,22.83326844,13.199,13.189,20.0]
[1672885486424,22.83326844,13.199,13.19,56.9]
[1672885487789,22.83326844,13.199,13.189,56.9]
[1672885488842,22.83326844,13.199,13.183,246.9]
[1672885488843,20.0,13.197,13.187,56.91]
[1672885489050,20.0,13.197,13.184,303.82]
[1672885489470,20.0,13.197,13.184,56.92]
[1672885489683,22.83326844,13.196,13.184,56.92]
[1672885489894,20.0,13.195,13.185,20.0]
[1672885490105,20.0,13.197,13.185,76.92]
[1672885490316,20.0,13.197,13.185,20.0]
[1672885490533,20.0,13.197,13.186,56.91]
[1672885490744,42.83326844,13.197,13.186,56.91]
[1672885491062,20.0,13.196,13.186,56.91]
[1672885491277,20.0,13.196,13.184,56.92]
[1672885491590,42.83326844,13.196,13.184,368.92]
[1672885493274,20.0,13.195,13.184,56.92]
[1672885493682,22.83326844,13.194,13.182,76.93]
[1672885493894,20.0,13.193,13.182,76.93]
[1672885494110,20.0,13.193,13.182,56.93]
[1672885494310,42.83326844,13.193,13.182,56.93]
[1672885496125,42.83326844,13.193,13.182,368.93]
[1672885496319,42.83326844,13.193,13.183,20.0]
[1672885496830,42.83326844,13.193,13.185,20.0]
[1672885497040,42.83326844,13.193,13.184,56.92]
[1672885497692,42.83326844,13.193,13.183,56.93]
[1672885499775,20.0,13.193,13.183,283.83]
[1672885500100,60.76658683,13.198,13.185,226.9]
[1672885500320,60.76658683,13.198,13.186,20.0]
[1672885500528,60.76658683,13.198,13.185,76.92]
[1672885500740,60.76658683,13.198,13.187,20.0]
[1672885501267,60.76658683,13.198,13.188,56.91]
[1672885501663,60.76658683,13.198,13.188,169.0692]
[1672885502527,60.76658683,13.198,13.188,112.1592]
[1672885505028,37.93331839,13.198,13.188,112.1592]
[1672885505576,37.93331839,13.198,13.19,20.0]
[1672885505767,37.93331839,13.198,13.189,56.9]
[1672885505768,60.76658683,13.198,13.189,56.9]
[1672885508404,60.76658683,13.198,13.188,169.0692]
[1672885509042,60.76658683,13.198,13.188,112.1592]
[1672885526198,60.76658683,13.198,13.19,20.0]
[1672885526388,60.76658683,13.198,13.189,56.9]
[1672885529247,60.76658683,13.198,13.188,112.1592]
[1672885530385,60.76658683,13.198,13.187,56.91]
[1672885530591,20.0,13.196,13.186,114.1643]
[1672885530909,104.91267061,13.195,13.186,114.1643]
[1672885531246,88.58408043,13.194,13.186,114.1643]
[1672885531426,20.0,13.192,13.186,114.1643]
[1672885531641,20.0,13.192,13.182,56.93]
[1672885531852,42.83326844,13.192,13.182,56.93]
[1672885532489,42.83326844,13.192,13.181,146.3057]
[1672885533443,42.83326844,13.192,13.182,312.0]
[1672885533444,22.83326844,13.192,13.182,312.0]
[1672885533850,56.89,13.191,13.182,312.0]
[1672885534181,42.83326844,13.19,13.182,312.0]
[1672885534606,22.83326844,13.189,13.18,111.7185]
[1672885536690,22.83326844,13.189,13.175,76.96]
[1672885537023,20.0,13.187,13.172,56.97]
[1672885537329,42.86361173,13.186,13.176,30.335081]
[1672885537538,247.54898438,13.186,13.176,30.335081]
[1672885537741,127.77537265,13.185,13.176,30.335081]
[1672885537951,170.63898438,13.185,13.176,30.335081]
[1672885538161,154.05812066,13.184,13.176,30.335081]
[1672885538592,20.0,13.182,13.176,30.335081]
[1672885538998,22.83326844,13.181,13.176,30.335081]
[1672885542571,127.55725199,13.184,13.176,30.335081]
[1672885542572,70.63725199,13.184,13.176,30.335081]
[1672885542784,56.9,13.189,13.176,30.335081]
[1672885543101,22.83326844,13.188,13.177,172.0046]
[1672885543307,84.53063638,13.188,13.177,172.0046]
[1672885543733,84.53063638,13.188,13.177,484.0046]
[1672885544678,84.53063638,13.188,13.177,172.0046]
[1672885545632,61.69736794,13.187,13.177,172.0046]
[1672885545945,84.53063638,13.187,13.177,172.0046]
[1672885546261,61.69736794,13.186,13.177,172.0046]
[1672885546669,84.53063638,13.186,13.177,172.0046]
[1672885550566,61.69736794,13.186,13.177,172.0046]
[1672885554341,22.83326844,13.188,13.177,172.0046]
[1672885555936,22.83326844,13.188,13.178,20.0]
[1672885556568,22.83326844,13.188,13.179,56.94]
[1672885556879,104.56097967,13.19,13.18,20.0]
[1672885557071,127.39424811,13.19,13.18,20.0]
[1672885557399,127.39424811,13.19,13.182,20.0]
[1672885558336,127.39424811,13.19,13.181,427.2149]
[1672885561486,127.39424811,13.19,13.182,20.0]
[1672885562223,42.86361173,13.19,13.182,20.0]
[1672885562438,42.86361173,13.19,13.183,56.93]
[1672885562647,49.95896452,13.193,13.184,20.0]
[1672885562853,92.82257625,13.193,13.184,20.0]
[1672885563069,42.86361173,13.193,13.184,20.0]
[1672885564438,57.6240346,13.196,13.186,20.0]
[1672885564634,57.6240346,13.196,13.186,332.0]
[1672885565708,57.6240346,13.196,13.188,20.0]
[1672885566554,57.6240346,13.196,13.187,20.0]
[1672885566748,57.6240346,13.196,13.186,76.91]
[1672885566955,80.45730304,13.196,13.186,76.91]
[1672885567602,80.45730304,13.196,13.186,56.91]
[1672885571075,80.45730304,13.196,13.186,76.91]
[1672885572106,80.45730304,13.196,13.187,20.0]
[1672885572311,57.6240346,13.196,13.187,20.0]
[1672885572536,56.85,13.201,13.187,20.0]
[1672885572749,114.4740346,13.201,13.188,170.2641]
[1672885573071,152.28757966,13.201,13.189,20.0]
[1672885575374,152.28757966,13.201,13.189,332.0]
[1672885575778,22.83326844,13.2,13.189,312.0]
[1672885576199,114.4840346,13.199,13.189,312.0]
[1672885576626,22.83326844,13.198,13.189,312.0]
[1672885576842,22.83326844,13.198,13.19,20.0]
[1672885579083,22.83326844,13.198,13.188,113.3541]
[1672885579597,22.83326844,13.198,13.189,20.0]
[1672885581914,56.84,13.204,13.19,226.9]
[1672885582120,20.0,13.203,13.19,283.8]
[1672885582318,76.84,13.203,13.19,283.8]
[1672885582527,20.0,13.203,13.191,20.0]
[1672885584856,22.83326844,13.202,13.191,20.0]
[1672885585068,79.68326844,13.202,13.192,56.89]
[1672885585387,79.68326844,13.202,13.191,76.89]
[1672885585593,22.83326844,13.201,13.191,76.89]
[1672885586119,22.83326844,13.201,13.191,388.89]
[1672885587689,22.83326844,13.201,13.19,113.2712]
[1672885588007,56.85,13.2,13.19,113.2712]
[1672885588406,22.83326844,13.199,13.19,113.2712]
[1672885589477,56.85,13.2,13.19,340.1712]
[1672885589793,37.81354506,13.201,13.191,20.0]
[1672885590613,37.81354506,13.201,13.191,19.91225593]
[1672885591579,37.81354506,13.201,13.191,76.80225593]
[1672885591895,37.81354506,13.201,13.191,56.89]
[1672885592103,37.81354506,13.201,13.19,340.1712]
[1672885592328,37.81354506,13.201,13.192,20.0]
[1672885592631,37.81354506,13.201,13.191,56.89]
[1672885592834,20.0,13.199,13.19,113.2712]
[1672885593048,22.83326844,13.2,13.19,113.2712]
[1672885593258,22.83326844,13.199,13.19,113.2712]
[1672885594820,22.83326844,13.199,13.19,425.2712]
[1672885596609,57.6240346,13.2,13.19,425.2712]
[1672885597982,57.6240346,13.2,13.191,20.0]
[1672885598402,37.81354506,13.201,13.192,56.89]
[1672885598732,37.81354506,13.201,13.193,20.0]
[1672885600202,37.81354506,13.201,13.192,56.89]
[1672885601043,37.81354506,13.201,13.192,368.89]
[1672885601442,37.81354506,13.201,13.192,312.0]
[1672885603644,37.81354506,13.201,13.193,20.0]
[1672885604074,37.81354506,13.201,13.193,303.78]
[1672885605433,37.7289311,13.201,13.193,303.78]
[1672885605643,37.7289311,13.201,13.193,76.88]
[1672885606411,37.7289311,13.201,13.193,303.78]
[1672885607362,37.7289311,13.201,13.193,226.9]
[1672885607990,37.7289311,13.201,13.192,226.9]
[1672885608211,37.7289311,13.201,13.193,20.0]
[1672885608939,37.7289311,13.201,13.193,76.88]
[1672885609446,37.7289311,13.201,13.193,56.88]
[1672885609775,60.56219954,13.201,13.191,56.89]
[1672885610096,60.56219954,13.201,13.19,113.2712]
[1672885610285,60.56219954,13.201,13.193,312.0]
[1672885611649,60.56219954,13.201,13.194,20.0]
[1672885612705,60.56219954,13.201,13.193,20.0]
[1672885614602,60.56219954,13.201,13.193,332.0]
[1672885615028,60.56219954,13.201,13.193,312.0]
[1672885615762,60.56219954,13.201,13.19,113.2712]
[1672885616598,96.85,13.2,13.185,56.92]
[1672885616807,144.48274511,13.2,13.184,56.92]